[Event "Early-Titled-Tuesday-Blitz-December-26-2023"]
[Site "Chess.com"]
[Date "2023.12.26"]
[Round "5"]
[White "Artyom_ChessMate"]
[Black "slidingknight2775"]
[Result "0-1"]
[WhiteElo "2513"]
[BlackElo "2684"]
[TimeControl "180+1"]
[EndTime "8:57:42 PST"]
[Termination "slidingknight2775 won by resignation"]

1. e4 {[%clk 0:02:18.2]} 1... c5 {[%clk 0:02:57.3]} 2. Nc3 {[%clk 0:02:17.1]}
2... a6 {[%clk 0:02:17.7]} 3. g3 {[%clk 0:02:06.6]} 3... b5 {[%clk 0:02:17.4]}
4. Bg2 {[%clk 0:02:06.1]} 4... Bb7 {[%clk 0:02:17.9]} 5. d3 {[%clk 0:02:05.9]}
5... e6 {[%clk 0:02:17.2]} 6. Nh3 {[%clk 0:02:06.1]} 6... Nf6 {[%clk 0:02:15.7]}
7. O-O {[%clk 0:02:06.2]} 7... d6 {[%clk 0:02:13]} 8. f4 {[%clk 0:02:06.3]} 8...
Nbd7 {[%clk 0:02:10.6]} 9. f5 {[%clk 0:01:52.6]} 9... exf5 {[%clk 0:01:45.4]}
10. Rxf5 {[%clk 0:01:50.6]} 10... b4 {[%clk 0:01:31.4]} 11. Ne2 {[%clk
0:01:46.1]} 11... Be7 {[%clk 0:01:17.3]} 12. Rf1 {[%clk 0:01:40.1]} 12... O-O
{[%clk 0:01:08]} 13. Nhf4 {[%clk 0:01:38.2]} 13... Rb8 {[%clk 0:01:06.1]} 14.
Nd5 {[%clk 0:01:12.9]} 14... Nxd5 {[%clk 0:01:00.1]} 15. exd5 {[%clk 0:01:13.8]}
15... Bf6 {[%clk 0:00:56.1]} 16. Rb1 {[%clk 0:01:06.9]} 16... Nb6 {[%clk
0:00:51.4]} 17. Nf4 {[%clk 0:01:03]} 17... g6 {[%clk 0:00:51.5]} 18. Be3 {[%clk
0:00:46.2]} 18... Bg7 {[%clk 0:00:49.6]} 19. b3 {[%clk 0:00:44.1]} 19... Re8
{[%clk 0:00:44.1]} 20. Bf2 {[%clk 0:00:37.4]} 20... Rc8 {[%clk 0:00:36.5]} 21.
h4 {[%clk 0:00:23.5]} 21... Be5 {[%clk 0:00:27.4]} 22. Qf3 {[%clk 0:00:13.6]}
22... Qf6 {[%clk 0:00:20.8]} 23. Be3 {[%clk 0:00:07.5]} 23... Bc3 {[%clk
0:00:15]} 24. Kh1 {[%clk 0:00:06]} 24... a5 {[%clk 0:00:12.1]} 25. Rbd1 {[%clk
0:00:05.6]} 25... Bd4 {[%clk 0:00:10.5]} 26. Bc1 {[%clk 0:00:04.3]} 26... a4
{[%clk 0:00:09.6]} 27. Qg4 {[%clk 0:00:04.8]} 27... Qg7 {[%clk 0:00:09.3]} 28.
Nh3 {[%clk 0:00:03.8]} 28... axb3 {[%clk 0:00:08.2]} 29. axb3 {[%clk 0:00:04.7]}
29... f5 {[%clk 0:00:08.5]} 30. Qf4 {[%clk 0:00:03.1]} 30... Bxd5 {[%clk
0:00:07]} 31. Ng5 {[%clk 0:00:02.3]} 31... Bxg2+ {[%clk 0:00:06.9]} 32. Kxg2
{[%clk 0:00:03.2]} 32... h6 {[%clk 0:00:07]} 33. Nf3 {[%clk 0:00:02.4]} 33...
Bf6 {[%clk 0:00:07]} 34. Qd2 {[%clk 0:00:02.2]} 34... Nd5 {[%clk 0:00:07.1]} 35.
Qf2 {[%clk 0:00:02.8]} 35... Nc3 {[%clk 0:00:07.2]} 36. Rde1 {[%clk 0:00:02.9]}
36... Qf7 {[%clk 0:00:07.7]} 37. h5 {[%clk 0:00:03.2]} 37... g5 {[%clk
0:00:07.6]} 38. Nh2 {[%clk 0:00:03.9]} 38... Rxe1 {[%clk 0:00:07.6]} 39. Rxe1
{[%clk 0:00:04.8]} 39... Bg7 {[%clk 0:00:07]} 40. Bd2 {[%clk 0:00:04.4]} 40...
Re8 {[%clk 0:00:07.2]} 41. Nf3 {[%clk 0:00:04.4]} 41... Rxe1 {[%clk 0:00:07.1]}
42. Qxe1 {[%clk 0:00:05.3]} 42... Nd5 {[%clk 0:00:07.5]} 43. Qe2 {[%clk
0:00:05.1]} 43... Nf6 {[%clk 0:00:07.2]} 44. Qf2 {[%clk 0:00:04.9]} 44... Ng4
{[%clk 0:00:07.3]} 45. Qe1 {[%clk 0:00:05]} 45... Nf6 {[%clk 0:00:07.3]} 46. Qe2
{[%clk 0:00:04.6]} 46... Nxh5 {[%clk 0:00:07.7]} 47. Qe3 {[%clk 0:00:03.1]}
47... Nf6 {[%clk 0:00:07.9]} 48. Qe2 {[%clk 0:00:03.6]} 48... Qd5 {[%clk
0:00:08.1]} 49. Kf1 {[%clk 0:00:02.9]} 49... Ng4 {[%clk 0:00:08.1]} 50. Qd1
{[%clk 0:00:02]} 50... Qxf3+ {[%clk 0:00:08.1]} 51. Qxf3 {[%clk 0:00:02.9]}
51... Nh2+ {[%clk 0:00:08.8]} 52. Kf2 {[%clk 0:00:03.3]} 52... Nxf3 {[%clk
0:00:09.7]} 53. Kxf3 {[%clk 0:00:04.2]} 53... Be5 {[%clk 0:00:10.4]} 54. g4
{[%clk 0:00:05]} 54... fxg4+ {[%clk 0:00:10.1]} 55. Kxg4 {[%clk 0:00:05.9]}
55... Kg7 {[%clk 0:00:10.6]} 56. Kf5 {[%clk 0:00:06.8]} 56... Kf7 {[%clk
0:00:10.5]} 57. Be3 {[%clk 0:00:07.3]} 57... Bf6 {[%clk 0:00:10.5]} 58. Bf2
{[%clk 0:00:07.3]} 58... h5 {[%clk 0:00:10.7]} 59. Bg3 {[%clk 0:00:07.8]} 59...
Be7 {[%clk 0:00:09.9]} 60. Bf2 {[%clk 0:00:07.8]} 60... g4 {[%clk 0:00:10.1]}
61. Be1 {[%clk 0:00:06.2]} 61... Ke8 {[%clk 0:00:09.6]} 62. Bf2 {[%clk
0:00:06.4]} 62... Kd7 {[%clk 0:00:09.9]} 63. Be1 {[%clk 0:00:06.2]} 63... Bd8
{[%clk 0:00:10.4]} 64. Bf2 {[%clk 0:00:06.7]} 64... Kc6 {[%clk 0:00:10.9]} 65.
Be1 {[%clk 0:00:07.1]} 65... Kd5 {[%clk 0:00:11.5]} 66. Bf2 {[%clk 0:00:07.4]}
66... Be7 {[%clk 0:00:11.9]} 67. Kf4 {[%clk 0:00:06.5]} 67... Ke6 {[%clk
0:00:11]} 68. Be1 {[%clk 0:00:05.5]} 68... d5 {[%clk 0:00:11.1]} 69. Bf2 {[%clk
0:00:05.8]} 69... Bd6+ {[%clk 0:00:10.4]} 70. Kg5 {[%clk 0:00:06.1]} 70... g3
{[%clk 0:00:11]} 71. Bg1 {[%clk 0:00:06.5]} 71... g2 {[%clk 0:00:09.8]} 72. Kxh5
{[%clk 0:00:06.6]} 72... Kf5 {[%clk 0:00:10.4]} 73. Kh4 {[%clk 0:00:07.1]} 73...
Kf4 {[%clk 0:00:09.8]} 74. Kh3 {[%clk 0:00:04]} 74... Kf3 {[%clk 0:00:10.1]} 75.
d4 {[%clk 0:00:02.3]} 75... c4 {[%clk 0:00:09.9]} 76. Kh4 {[%clk 0:00:02.1]}
76... cxb3 {[%clk 0:00:09.9]} 77. cxb3 {[%clk 0:00:03]} 77... Bg3+ {[%clk
0:00:09.5]} 78. Kg5 {[%clk 0:00:03]} 78... Bf2 {[%clk 0:00:09.9]} 79. Bh2 {[%clk
0:00:03.6]} 79... Bxd4 {[%clk 0:00:09.9]} 80. Kf5 {[%clk 0:00:03.2]} 80... g1=Q
{[%clk 0:00:09.8]} 81. Bxg1 {[%clk 0:00:03.3]} 81... Bxg1 {[%clk 0:00:10.7]} 82.
Ke5 {[%clk 0:00:04.1]} 82... d4 {[%clk 0:00:10.6]} 0-1

[Event "Early-Titled-Tuesday-Blitz-December-26-2023"]
[Site "Chess.com"]
[Date "2023.12.26"]
[Round "5"]
[White "Felix-Rose"]
[Black "Alenzer"]
[Result "1/2-1/2"]
[WhiteElo "2243"]
[BlackElo "2067"]
[TimeControl "180+1"]
[EndTime "8:58:08 PST"]
[Termination "Game drawn - insufficient material"]

1. e4 {[%clk 0:03:00.3]} 1... c5 {[%clk 0:02:56.4]} 2. Nf3 {[%clk 0:03:00.3]}
2... e6 {[%clk 0:02:56.4]} 3. d4 {[%clk 0:03:00.5]} 3... cxd4 {[%clk 0:02:56.4]}
4. Nxd4 {[%clk 0:03:01.4]} 4... Nf6 {[%clk 0:02:56]} 5. Nc3 {[%clk 0:03:02]}
5... Nc6 {[%clk 0:02:55.9]} 6. Ndb5 {[%clk 0:03:01.7]} 6... d6 {[%clk
0:02:50.7]} 7. Bf4 {[%clk 0:03:01.7]} 7... e5 {[%clk 0:02:50.6]} 8. Bg5 {[%clk
0:03:02.4]} 8... a6 {[%clk 0:02:50.9]} 9. Na3 {[%clk 0:03:02.9]} 9... b5 {[%clk
0:02:51]} 10. Nd5 {[%clk 0:03:03.6]} 10... Be7 {[%clk 0:02:51.5]} 11. Bxf6
{[%clk 0:03:04]} 11... Bxf6 {[%clk 0:02:51.1]} 12. c3 {[%clk 0:03:04.9]} 12...
Rb8 {[%clk 0:02:47.5]} 13. Be2 {[%clk 0:03:01.8]} 13... O-O {[%clk 0:02:43.4]}
14. O-O {[%clk 0:03:01.9]} 14... Bg5 {[%clk 0:02:43.4]} 15. Nc2 {[%clk
0:03:01.6]} 15... Be6 {[%clk 0:02:38.6]} 16. Ncb4 {[%clk 0:03:00.8]} 16... Nxb4
{[%clk 0:02:34.1]} 17. Nxb4 {[%clk 0:03:00.9]} 17... Qb6 {[%clk 0:02:33.3]} 18.
Nd5 {[%clk 0:02:53.6]} 18... Qb7 {[%clk 0:02:23]} 19. Bg4 {[%clk 0:02:29.2]}
19... Bxd5 {[%clk 0:02:16.8]} 20. Qxd5 {[%clk 0:02:23]} 20... Qxd5 {[%clk
0:02:14.9]} 21. exd5 {[%clk 0:02:23.3]} 21... f5 {[%clk 0:02:15.2]} 22. Be2
{[%clk 0:02:21.3]} 22... a5 {[%clk 0:02:07.4]} 23. a3 {[%clk 0:02:18.9]} 23...
Rfc8 {[%clk 0:01:52]} 24. Rfd1 {[%clk 0:02:09.2]} 24... Kf7 {[%clk 0:01:51.6]}
25. g3 {[%clk 0:02:08.1]} 25... Rc5 {[%clk 0:01:38.8]} 26. h4 {[%clk 0:02:03.6]}
26... Bd8 {[%clk 0:01:36.8]} 27. Kg2 {[%clk 0:01:51.5]} 27... g6 {[%clk
0:01:30.4]} 28. Rd2 {[%clk 0:01:32.4]} 28... e4 {[%clk 0:01:25.4]} 29. a4 {[%clk
0:01:17.2]} 29... b4 {[%clk 0:01:22.5]} 30. c4 {[%clk 0:01:11.5]} 30... Bf6
{[%clk 0:01:21.9]} 31. Rh1 {[%clk 0:01:06.2]} 31... b3 {[%clk 0:01:11.4]} 32. h5
{[%clk 0:01:06.2]} 32... g5 {[%clk 0:01:11]} 33. h6 {[%clk 0:01:05.5]} 33... Rb4
{[%clk 0:01:06.3]} 34. Ra1 {[%clk 0:01:04.6]} 34... Kg6 {[%clk 0:00:58.7]} 35.
Ra3 {[%clk 0:00:58]} 35... Rc7 {[%clk 0:00:46.7]} 36. Kf1 {[%clk 0:00:39.1]}
36... Bc3 {[%clk 0:00:42.5]} 37. bxc3 {[%clk 0:00:27]} 37... b2 {[%clk
0:00:42.7]} 38. cxb4 {[%clk 0:00:24.5]} 38... b1=Q+ {[%clk 0:00:40.8]} 39. Rd1
{[%clk 0:00:24.8]} 39... Qxb4 {[%clk 0:00:41]} 40. Raa1 {[%clk 0:00:24.3]} 40...
Qc5 {[%clk 0:00:33.1]} 41. Rab1 {[%clk 0:00:21.6]} 41... Qa3 {[%clk 0:00:28]}
42. Ra1 {[%clk 0:00:21.8]} 42... Qc5 {[%clk 0:00:26.7]} 43. Rdb1 {[%clk
0:00:21.8]} 43... e3 {[%clk 0:00:25.6]} 44. Rb5 {[%clk 0:00:19]} 44... Qd4
{[%clk 0:00:26]} 45. Rd1 {[%clk 0:00:19.5]} 45... Qe4 {[%clk 0:00:23.2]} 46. f3
{[%clk 0:00:18.2]} 46... Qc2 {[%clk 0:00:22.4]} 47. Rxa5 {[%clk 0:00:17.2]}
47... Rxc4 {[%clk 0:00:21]} 48. Ra6 {[%clk 0:00:14.7]} 48... Rxa4 {[%clk
0:00:16.5]} 49. Rxd6+ {[%clk 0:00:13.7]} 49... Kf7 {[%clk 0:00:17]} 50. f4
{[%clk 0:00:11.8]} 50... Qe4 {[%clk 0:00:15.2]} 51. Bh5+ {[%clk 0:00:12]} 51...
Ke7 {[%clk 0:00:15]} 52. Re6+ {[%clk 0:00:12.5]} 52... Kd7 {[%clk 0:00:14.7]}
53. Rxe4 {[%clk 0:00:13.1]} 53... Rxe4 {[%clk 0:00:15.1]} 54. fxg5 {[%clk
0:00:13.7]} 54... f4 {[%clk 0:00:10.1]} 55. g6 {[%clk 0:00:08.7]} 55... hxg6
{[%clk 0:00:09.9]} 56. h7 {[%clk 0:00:06.8]} 56... Re8 {[%clk 0:00:09.5]} 57.
Bxg6 {[%clk 0:00:06.6]} 57... e2+ {[%clk 0:00:09.8]} 58. Ke1 {[%clk 0:00:05.6]}
58... exd1=Q+ {[%clk 0:00:09.5]} 59. Kxd1 {[%clk 0:00:06.5]} 59... Rh8 {[%clk
0:00:09.9]} 60. gxf4 {[%clk 0:00:07]} 60... Kd6 {[%clk 0:00:10.2]} 61. Ke2
{[%clk 0:00:06.2]} 61... Kxd5 {[%clk 0:00:10.4]} 62. Kf3 {[%clk 0:00:06.8]}
62... Ke6 {[%clk 0:00:10.6]} 63. Kg4 {[%clk 0:00:07.4]} 63... Kf6 {[%clk
0:00:11.1]} 64. Kh5 {[%clk 0:00:08.1]} 64... Kg7 {[%clk 0:00:11]} 65. f5 {[%clk
0:00:07.8]} 65... Kf6 {[%clk 0:00:11.1]} 66. Kh6 {[%clk 0:00:08.3]} 66... Rf8
{[%clk 0:00:10.4]} 67. Kh5 {[%clk 0:00:08.4]} 67... Rh8 {[%clk 0:00:10.7]} 68.
Kh6 {[%clk 0:00:08.9]} 68... Rf8 {[%clk 0:00:11.1]} 69. Kh5 {[%clk 0:00:09.7]}
69... Rb8 {[%clk 0:00:11]} 70. Kh6 {[%clk 0:00:08]} 70... Rc8 {[%clk 0:00:10.5]}
71. Bh5 {[%clk 0:00:04.1]} 71... Kxf5 {[%clk 0:00:07.4]} 72. Kg7 {[%clk
0:00:04.5]} 72... Rc7+ {[%clk 0:00:06.5]} 73. Bf7 {[%clk 0:00:05.1]} 73... Rc8
{[%clk 0:00:06.6]} 74. Bg8 {[%clk 0:00:05.7]} 74... Rc7+ {[%clk 0:00:07.2]} 75.
Kh6 {[%clk 0:00:06.4]} 75... Rxh7+ {[%clk 0:00:07.2]} 76. Kxh7 {[%clk
0:00:06.4]} 1/2-1/2

[Event "Early-Titled-Tuesday-Blitz-December-26-2023"]
[Site "Chess.com"]
[Date "2023.12.26"]
[Round "5"]
[White "whitemirrorninja"]
[Black "Nechitaylo_Nikita"]
[Result "1-0"]
[WhiteElo "2535"]
[BlackElo "2293"]
[TimeControl "180+1"]
[EndTime "8:58:13 PST"]
[Termination "whitemirrorninja won by resignation"]

1. d4 {[%clk 0:03:00.9]} 1... Nf6 {[%clk 0:02:56.8]} 2. c4 {[%clk 0:03:01.4]}
2... e6 {[%clk 0:02:57.3]} 3. Nc3 {[%clk 0:03:01.2]} 3... Bb4 {[%clk 0:02:57.8]}
4. Qc2 {[%clk 0:03:00.7]} 4... O-O {[%clk 0:02:57.6]} 5. a3 {[%clk 0:02:59.8]}
5... Bxc3+ {[%clk 0:02:55.9]} 6. Qxc3 {[%clk 0:03:00.7]} 6... d5 {[%clk
0:02:56.4]} 7. Nf3 {[%clk 0:02:59.7]} 7... b6 {[%clk 0:02:46.9]} 8. cxd5 {[%clk
0:02:57.3]} 8... Ne4 {[%clk 0:02:34.7]} 9. Qc2 {[%clk 0:02:53.5]} 9... exd5
{[%clk 0:02:34.4]} 10. Bf4 {[%clk 0:02:53.3]} 10... c5 {[%clk 0:02:27.1]} 11.
Rd1 {[%clk 0:02:53.8]} 11... Bf5 {[%clk 0:02:24.6]} 12. Qb3 {[%clk 0:02:38.3]}
12... c4 {[%clk 0:02:11.3]} 13. Qe3 {[%clk 0:02:38.7]} 13... Re8 {[%clk
0:02:07.6]} 14. Qc1 {[%clk 0:02:39.1]} 14... Nc6 {[%clk 0:02:01.9]} 15. e3
{[%clk 0:02:38.9]} 15... Na5 {[%clk 0:01:59.7]} 16. Nd2 {[%clk 0:02:32.6]} 16...
Nxd2 {[%clk 0:01:16.3]} 17. Qxd2 {[%clk 0:02:33.5]} 17... Nb3 {[%clk 0:01:16.9]}
18. Qc3 {[%clk 0:02:32.9]} 18... a5 {[%clk 0:01:09.5]} 19. Be2 {[%clk
0:02:32.6]} 19... b5 {[%clk 0:01:04.7]} 20. O-O {[%clk 0:02:32.5]} 20... Qb6
{[%clk 0:01:04.7]} 21. Bf3 {[%clk 0:02:22.5]} 21... b4 {[%clk 0:01:02.8]} 22.
Qe1 {[%clk 0:02:12.1]} 22... Rad8 {[%clk 0:00:55]} 23. axb4 {[%clk 0:02:07.3]}
23... axb4 {[%clk 0:00:55.9]} 24. Be5 {[%clk 0:01:54]} 24... f6 {[%clk 0:00:55]}
25. Bf4 {[%clk 0:01:48.3]} 25... Bd3 {[%clk 0:00:55.4]} 26. Rxd3 {[%clk
0:01:46.9]} 26... cxd3 {[%clk 0:00:56.3]} 27. Qd1 {[%clk 0:01:47.3]} 27... Na5
{[%clk 0:00:46.5]} 28. Qxd3 {[%clk 0:01:47.3]} 28... Qc6 {[%clk 0:00:35.7]} 29.
h4 {[%clk 0:01:28.3]} 29... Qc4 {[%clk 0:00:28.5]} 30. Qf5 {[%clk 0:01:28.8]}
30... Qc8 {[%clk 0:00:18.4]} 31. Bxd5+ {[%clk 0:01:06.3]} 31... Kh8 {[%clk
0:00:18]} 32. Qh5 {[%clk 0:01:07]} 32... g6 {[%clk 0:00:09.3]} 33. Qf3 {[%clk
0:01:07.6]} 33... b3 {[%clk 0:00:06.9]} 34. h5 {[%clk 0:01:04.5]} 34... Rf8
{[%clk 0:00:02.5]} 35. hxg6 {[%clk 0:01:03.5]} 35... hxg6 {[%clk 0:00:03.4]} 36.
g4 {[%clk 0:01:00.8]} 36... Kg7 {[%clk 0:00:03.7]} 37. g5 {[%clk 0:01:00.1]}
37... Qd7 {[%clk 0:00:01.8]} 38. gxf6+ {[%clk 0:00:57.1]} 38... Rxf6 {[%clk
0:00:02.7]} 39. Be5 {[%clk 0:00:56.1]} 39... Qf5 {[%clk 0:00:02.2]} 40. Qxf5
{[%clk 0:00:23.6]} 40... gxf5 {[%clk 0:00:01.7]} 41. Be6 {[%clk 0:00:20.6]}
41... Re8 {[%clk 0:00:01.2]} 42. d5 {[%clk 0:00:19.9]} 42... Kg6 {[%clk
0:00:01]} 43. Kg2 {[%clk 0:00:16.3]} 43... Rfxe6 {[%clk 0:00:01.4]} 44. dxe6
{[%clk 0:00:15.9]} 44... Rxe6 {[%clk 0:00:02.3]} 45. Bd4 {[%clk 0:00:14.2]}
45... Nc4 {[%clk 0:00:03]} 46. Rc1 {[%clk 0:00:13.7]} 46... Nd2 {[%clk
0:00:03.5]} 47. Rc7 {[%clk 0:00:11.4]} 47... Rd6 {[%clk 0:00:02.8]} 48. f4
{[%clk 0:00:08.9]} 48... Ne4 {[%clk 0:00:02.2]} 49. Rg7+ {[%clk 0:00:09]} 49...
Kh6 {[%clk 0:00:02.2]} 50. Rb7 {[%clk 0:00:09.6]} 50... Nd2 {[%clk 0:00:01.8]}
51. Kf2 {[%clk 0:00:08.1]} 51... Ne4+ {[%clk 0:00:01.7]} 52. Ke2 {[%clk
0:00:07.9]} 52... Rg6 {[%clk 0:00:01.9]} 53. Rxb3 {[%clk 0:00:06.7]} 53... Rg2+
{[%clk 0:00:02.4]} 54. Kd3 {[%clk 0:00:06.8]} 54... Rd2+ {[%clk 0:00:02.7]} 55.
Kc4 {[%clk 0:00:07.5]} 55... Rc2+ {[%clk 0:00:03.3]} 56. Kd5 {[%clk 0:00:06.5]}
56... Kg6 {[%clk 0:00:03.1]} 57. Rb6+ {[%clk 0:00:05.3]} 57... Kf7 {[%clk
0:00:03.7]} 58. Ke5 {[%clk 0:00:05.1]} 58... Nd2 {[%clk 0:00:02.4]} 59. Kxf5
{[%clk 0:00:04.4]} 59... Nc4 {[%clk 0:00:02.1]} 60. Rb7+ {[%clk 0:00:04.9]}
60... Ke8 {[%clk 0:00:01.5]} 61. Be5 {[%clk 0:00:05]} 61... Re2 {[%clk
0:00:01.6]} 62. e4 {[%clk 0:00:05.2]} 62... Nxe5 {[%clk 0:00:01.6]} 63. Kxe5
{[%clk 0:00:05.2]} 63... Rh2 {[%clk 0:00:01.9]} 64. f5 {[%clk 0:00:05.6]} 64...
Rh6 {[%clk 0:00:02.5]} 65. b4 {[%clk 0:00:05.9]} 65... Rc6 {[%clk 0:00:02.4]}
66. Rg7 {[%clk 0:00:05.9]} 66... Kf8 {[%clk 0:00:01.9]} 67. Rb7 {[%clk
0:00:06.2]} 67... Ke8 {[%clk 0:00:02.2]} 68. Rb5 {[%clk 0:00:06.8]} 68... Kd7
{[%clk 0:00:02.2]} 69. Rd5+ {[%clk 0:00:07.1]} 69... Ke7 {[%clk 0:00:02.7]} 70.
Rc5 {[%clk 0:00:08]} 70... Rb6 {[%clk 0:00:02.8]} 71. Rc7+ {[%clk 0:00:07.9]}
71... Kd8 {[%clk 0:00:02.8]} 72. Rc4 {[%clk 0:00:08.4]} 72... Rb5+ {[%clk
0:00:03.3]} 73. Kf4 {[%clk 0:00:08.1]} 73... Ke7 {[%clk 0:00:03.3]} 74. e5
{[%clk 0:00:08.2]} 74... Rb7 {[%clk 0:00:03]} 75. f6+ {[%clk 0:00:08.3]} 75...
Ke6 {[%clk 0:00:03.6]} 76. Rc6+ {[%clk 0:00:08.7]} 76... Kf7 {[%clk 0:00:04.2]}
77. Kf5 {[%clk 0:00:08.3]} 77... Rxb4 {[%clk 0:00:04]} 78. e6+ {[%clk
0:00:08.3]} 78... Kg8 {[%clk 0:00:04.5]} 79. f7+ {[%clk 0:00:08.1]} 79... Kg7
{[%clk 0:00:04.9]} 80. Rc8 {[%clk 0:00:07.4]} 80... Rb5+ {[%clk 0:00:05.1]} 81.
Ke4 {[%clk 0:00:07.3]} 81... Rb4+ {[%clk 0:00:02.6]} 82. Kd3 {[%clk 0:00:07.9]}
82... Rf4 {[%clk 0:00:02.5]} 83. Rg8+ {[%clk 0:00:06.8]} 83... Kh7 {[%clk
0:00:02]} 84. f8=Q {[%clk 0:00:07.4]} 84... Rd4+ {[%clk 0:00:01.3]} 85. Ke3
{[%clk 0:00:06.6]} 85... Re4+ {[%clk 0:00:01.8]} 86. Kf3 {[%clk 0:00:06.7]}
86... Re3+ {[%clk 0:00:02]} 87. Kg4 {[%clk 0:00:06]} 87... Rg3+ {[%clk
0:00:02.3]} 88. Kf5 {[%clk 0:00:04.7]} 88... Rf3+ {[%clk 0:00:02.3]} 89. Ke5
{[%clk 0:00:05.3]} 89... Re3+ {[%clk 0:00:02.4]} 90. Kd5 {[%clk 0:00:04.2]}
90... Rd3+ {[%clk 0:00:02.2]} 91. Kc6 {[%clk 0:00:04.2]} 91... Rc3+ {[%clk
0:00:01.5]} 92. Qc5 {[%clk 0:00:03.6]} 92... Rxc5+ {[%clk 0:00:01.5]} 93. Kxc5
{[%clk 0:00:04.5]} 93... Kxg8 {[%clk 0:00:02.2]} 94. Kd6 {[%clk 0:00:04.6]}
94... Kf8 {[%clk 0:00:02.5]} 95. Kd7 {[%clk 0:00:05.2]} 95... Kg7 {[%clk
0:00:03.1]} 96. e7 {[%clk 0:00:05.9]} 96... Kf7 {[%clk 0:00:03.6]} 97. e8=Q+
{[%clk 0:00:06.8]} 97... Kf6 {[%clk 0:00:04.5]} 98. Qe7+ {[%clk 0:00:07.3]} 1-0